lending/lending_fUSD_20241229
["ID","MTS","AMOUNT","RATE_DAILY","PERIOD"]
[347086098,1735491086020,-1836.05,0.00016742,2]
[347086099,1735491086031,-500.0,0.00016743,2]
[347086100,1735491086045,-999.87,0.00016743,2]
[347086101,1735491086057,-510.19,0.00016743,2]
[347086102,1735491086068,-1921.52,0.00016743,2]
[347086103,1735491086080,-546.78,0.00016743,2]
[347086104,1735491086092,-3871.1,0.00016743,2]
[347086105,1735491086105,-592.58,0.00016743,2]
[347086106,1735491086120,-513.22,0.00016743,2]
[347086107,1735491086131,-1175.67,0.00016743,2]
[347086108,1735491086142,-515.44,0.00016744,2]
[347086109,1735491086155,-615.03,0.00016744,2]
[347086110,1735491086166,-899.47,0.00016744,2]
[347086111,1735491086179,-500.0,0.00016744,2]
[347086112,1735491086192,-815.97,0.00016744,2]
[347086113,1735491086204,-18568.48,0.00016744,2]
[347086114,1735491086215,-545.9,0.00016744,2]
[347086115,1735491086227,-969.49,0.00016744,2]
[347086116,1735491086238,-1026.67,0.00016744,2]
[347086117,1735491086249,-2110.5,0.00016744,2]
[347086118,1735491086261,-500.0,0.00016744,2]
[347086119,1735491086273,-703.26,0.00016744,2]
[347086120,1735491086284,-510.62,0.00016744,2]
[347086121,1735491086296,-500.0,0.00016744,2]
[347086122,1735491086307,-570.93,0.00016744,2]
[347086123,1735491086318,-1499.18,0.00016745,2]
[347086124,1735491086330,-500.0,0.00016745,2]
[347086125,1735491086341,-578.37,0.00016745,2]
[347086126,1735491086353,-548.58,0.00016745,2]
[347086127,1735491086365,-700.84,0.00016745,2]
[347086128,1735491086377,-2940.43,0.00016745,2]
[347086129,1735491086389,-5636.03,0.00016745,2]
[347086130,1735491086401,-150.0,0.00016745,2]
[347086131,1735491086412,-556.4,0.00016745,2]
[347086132,1735491086424,-1813.25,0.00016745,2]
[347086133,1735491086435,-640.38,0.00016745,2]
[347086134,1735491086447,-15027.68,0.00016745,2]
[347086135,1735491086458,-500.0,0.00016745,2]
[347086136,1735491086471,-500.0,0.00016745,2]
[347086137,1735491086482,-1140.36,0.00016745,2]
[347086138,1735491086493,-1186.66,0.00016746,2]
[347086139,1735491086504,-692.34,0.00016746,2]
[347086140,1735491086519,-150.0,0.00016749,2]
[347086141,1735491086531,-150.0,0.00016754,2]
[347086142,1735491086542,-500.0,0.00016773,2]
[347086143,1735491086554,-3670580.06525969,0.000168,2]
[347086144,1735491087144,-359.46753516,0.000168,2]
[347086145,1735491087184,-2003.19648206,0.000168,2]
[347086146,1735491087196,-4926.63449439,0.000168,2]
[347086147,1735491087265,-500.0,0.00011809,2]
[347086148,1735491087275,-108.11212382,0.00012083,2]
[347086149,1735491087285,-229.32787618,0.00012083,2]
[347086150,1735491087295,-1840.21,0.00016467,2]
[347086151,1735491087304,-704.14,0.00016467,2]
[347086152,1735491087314,-1840.21,0.00016741,2]
[347086153,1735491087323,-704.14,0.00016741,2]
[347086154,1735491087333,-23000.81260597,0.000168,2]
[347086155,1735491087343,-24648.21015124,0.000168,2]
[347086156,1735491087354,-11175.054306,0.000168,2]
[347086157,1735491087370,-534.0425677,0.000168,2]
[347086158,1735491087381,-2812.42,0.000168,2]
[347086159,1735491087393,-430.3439993,0.000168,2]
[347086160,1735491087411,-826.31590867,0.000168,2]
[347086161,1735491087422,-870.506235,0.000168,2]
[347086162,1735491087433,-671.07000009,0.000168,2]
[347086163,1735491087444,-58300.65231202,0.000168,2]
[347086164,1735491087455,-3674.76568076,0.000168,2]
[347086165,1735491087465,-669.0756367,0.000168,2]
[347086166,1735491087476,-26654.29054664,0.000168,2]
[347086167,1735491087825,-8156.45886777,0.000168,2]
[347086168,1735491087837,-298.2975,0.000168,2]
[347086169,1735491087848,-446.8668996,0.000168,2]
[347086170,1735491087858,-2007.46308737,0.000168,2]
[347086171,1735491087869,-29156.765,0.000168,2]
[347086172,1735491087974,-850.0830851,0.00011438,2]
[347086173,1735491087985,-317.25,0.00011438,2]
[347086174,1735491087996,-3283.1550149,0.00011438,2]
[347086175,1735491088005,-500.0,0.00011537,2]
[347086176,1735491088014,-509.12,0.00011539,2]
[347086177,1735491088023,-2141.63447113,0.000168,2]
[347086178,1735491088034,-494.14,0.000168,2]
[347086179,1735491088052,-705.0,0.000168,2]
[347086180,1735491088063,-1179.56290355,0.000168,2]
[347086181,1735491088074,-33237.02019729,0.000168,2]
[347086182,1735491088086,-24407.45537696,0.000168,2]
[347086183,1735491088105,-201.38,0.00011811,2]
[347086184,1735491088114,-128.11060594,0.000168,2]
[347086185,1735491088125,-2274.90198533,0.000168,2]
[347086186,1735491088136,-746.93877577,0.000168,2]
[347086187,1735491088334,-319.9113768,0.00011536,2]
[347086188,1735491088345,-180.0886232,0.00011536,2]
[347086189,1735491088355,-150.0,0.00013098,2]
[347086190,1735491088364,-600.0,0.000162,2]
[347086191,1735491088374,-137.16138456,0.000168,2]
[347086192,1735491088386,-1325.2359382,0.000168,2]
[347086193,1735491088397,-2717.39685988,0.000168,2]
[347086194,1735491088414,-600.0,0.000162,2]
[347086195,1735491088422,-4722.1726618,0.000168,2]
[347086196,1735491088532,-885219.66638031,0.000168,2]
[347086197,1735491088545,-196043.71615582,0.000168,2]
[347086198,1735491088556,-1499.46,0.000168,2]
[347086199,1735491088567,-403.24,0.000168,2]
[347086200,1735491088578,-2482.50469129,0.000168,2]
[347086201,1735491088589,-6050.9999995,0.000168,2]
[347086202,1735491088600,-2654.24185893,0.000168,2]
[347086203,1735491088611,-250850.29120616,0.000168,2]
[347086204,1735491088622,-986.0,0.000168,2]
[347086205,1735491088644,-500.0,0.0001181,2]
[347086206,1735491088654,-150.0,0.00016098,2]
[347086207,1735491088663,-2370.43812141,0.000168,2]
[347086208,1735491088674,-14178.31395819,0.000168,2]
[347086209,1735491088685,-2481.57987107,0.000168,2]
[347086210,1735491088696,-21947.859396,0.000168,2]
[347086211,1735491088707,-1828.433986,0.000168,2]
[347086212,1735491088718,-1105.71828895,0.000168,2]
[347086213,1735491088729,-31273.91059682,0.000168,2]
[347086214,1735491088740,-57022.9465228,0.000168,2]
[347086215,1735491088758,-150.0,0.00013098,2]
[347086216,1735491088767,-3452.45136437,0.000168,2]
[347086217,1735491170554,153.53,0.000179,31]
[347086218,1735491170618,153.53,0.000179,31]
[347086219,1735491236303,499.58,9.266e-05,2]
[347086241,1735491348103,175.33,0.00010137,2]
[347086249,1735491424627,1528.64,0.00010954,2]
[347086250,1735491479188,23900.0,0.00010917,2]
[347086251,1735491499817,250.0,0.00010917,2]
[347086252,1735491583009,250.0,0.00010954,2]
[347086253,1735491690332,1500.0,0.00010876,2]
[347086254,1735491772918,153.54,0.000179,31]
[347086255,1735491772968,153.54,0.000179,31]
[347086256,1735491773011,153.54,0.000179,31]
[347086257,1735491773041,153.54,0.000179,31]
[347086258,1735491773107,153.54,0.000179,31]
[347086259,1735491773165,153.54,0.000179,31]
[347086260,1735491773225,153.54,0.000179,31]
[347086261,1735491777485,291.37,0.00016658,30]
[347086262,1735491856998,3185.16,0.00010896,2]
[347086263,1735491858571,582.07,0.0001081,2]
[347086266,1735491875897,1000.0,0.00010768,2]
[347086267,1735491984147,5949.0,0.00010862,2]
[347086268,1735492027262,250.0,0.00010796,2]
[347086269,1735492127792,200.0,0.00010809,2]
[347086270,1735492130617,-7482.24696735,0.00011025,2]
[347086271,1735492130642,-368.09,0.00011026,2]
[347086272,1735492130664,-168.41,0.00011081,2]
[347086273,1735492130688,-907.49930469,0.00011285,2]
[347086274,1735492130709,-1057.0,0.0001134,2]
[347086275,1735492149167,-185.71,0.00011385,2]
[347086276,1735492149190,-164.93,0.00011386,2]
[347086277,1735492149212,-25075.11372796,0.00011436,2]
[347086278,1735492198427,5210.19016633,0.00024872,120]
[347086279,1735492210755,18957.04919628,0.00024872,120]
[347086295,1735492232687,-491.29,0.00011435,2]
[347086297,1735492232696,-491.5,0.00011435,2]
[347086299,1735492232706,-502.2,0.00011435,2]
[347086301,1735492232715,-508.23,0.00011435,2]
[347086303,1735492232724,-508.91,0.00011436,2]
[347086305,1735492232733,-498.41,0.00011436,2]
[347086307,1735492232743,-1986.74664,0.00011436,2]
[347086309,1735492232756,-1983.01705708,0.00011436,2]
[347086311,1735492232767,-334.78694722,0.00011436,2]
[347086314,1735492232783,-6171.85862774,0.00011436,2]
[347086316,1735492232792,-506.8,0.00011436,2]
[347086318,1735492232802,-493.71,0.00011436,2]
[347086320,1735492232811,-503.8,0.00011436,2]
[347086322,1735492232821,-507.89,0.00011436,2]
[347086324,1735492232830,-509.9,0.00011436,2]
[347086326,1735492232839,-501.55,0.00011436,2]
[347086329,1735492232849,-721.802,0.00011436,2]
[347086332,1735492232858,-497.61,0.00011436,2]
[347086335,1735492232868,-509.41,0.00011436,2]
[347086338,1735492232878,-497.44,0.00011436,2]
[347086342,1735492232887,-50000.0,0.00011436,2]
[347086344,1735492232896,-5115.51759515,0.00011437,2]
[347086389,1735492233242,-1.12449324,0.00011437,2]
[347086393,1735492233271,-6802.61055818,0.00011437,2]
[347086395,1735492233283,-12044.63064763,0.00011437,2]
[347086398,1735492233301,-881.08675534,0.00011437,2]
[347086400,1735492233312,-2057.50205046,0.00011437,2]
[347086402,1735492233322,-166.93681204,0.00011437,2]
[347086404,1735492233331,-48621.2853,0.00011438,2]
[347086406,1735492233341,-226.73808998,0.00011438,2]
[347086408,1735492233352,-1428.22687009,0.00011438,2]
[347086410,1735492233364,-1794.33067905,0.00011438,2]
[347086413,1735492233379,-934.32730861,0.00011438,2]
[347086415,1735492233391,-1784.09420779,0.00011438,2]
[347086417,1735492233402,-452.84172434,0.00011438,2]
[347086420,1735492233413,-7112.68904293,0.00011438,2]
[347086422,1735492233429,-13516.24357721,0.00011438,2]
[347086424,1735492233438,-229.02067647,0.00011507,2]
[347086426,1735492233451,-358.35358244,0.00011507,2]
[347086428,1735492233462,-796.98494109,0.00011507,2]
[347086430,1735492233472,-499.58,0.0001153,2]
[347086432,1735492233482,-490.43505891,0.00011535,2]
[347086633,1735492238238,-9.56494109,0.00011535,2]
[347086634,1735492238248,-500.0,0.00011535,2]
[347086635,1735492238260,-500.0,0.00011535,2]
[347086636,1735492238269,-82.34435756,0.00011535,2]
[347086637,1735492238295,-417.65564244,0.00011535,2]
[347086638,1735492238304,-638.58,0.00011535,2]
[347086639,1735492238313,-2431.67035756,0.00011535,2]
[347086640,1735492238351,-663.07964244,0.00011535,2]
[347086641,1735492238361,-567.57,0.00011535,2]
[347086642,1735492238370,-418.04,0.00011535,2]
[347086643,1735492238380,-500.0,0.00011535,2]
[347086644,1735492238390,-500.0,0.00011535,2]
[347086645,1735492238399,-500.0,0.00011535,2]
[347086646,1735492238409,-500.0,0.00011535,2]
[347086647,1735492238419,-500.0,0.00011535,2]
[347086648,1735492238428,-500.0,0.00011535,2]
[347086649,1735492238438,-500.0,0.00011535,2]
[347086650,1735492238447,-882.64,0.00011535,2]
[347086651,1735492238457,-500.0,0.00011535,2]
[347086652,1735492238466,-863.02,0.00011535,2]
[347086653,1735492238476,-500.0,0.00011535,2]
[347086654,1735492238485,-500.0,0.00011535,2]
[347086655,1735492238494,-500.0,0.00011535,2]
[347086656,1735492238505,-698.08,0.00011535,2]
[347086657,1735492238514,-500.0,0.00011535,2]
[347086658,1735492238524,-500.0,0.00011535,2]
[347086659,1735492238533,-500.0,0.00011535,2]
[347086660,1735492238542,-2036.77,0.00011535,2]
[347086661,1735492238551,-585.07,0.00011535,2]
[347086662,1735492238560,-510.33,0.00011535,2]
[347086663,1735492238569,-500.0,0.00011535,2]
[347086664,1735492238579,-500.0,0.00011535,2]
[347086665,1735492238590,-689.34,0.00011535,2]
[347086666,1735492238599,-500.0,0.00011535,2]
[347086667,1735492238608,-715.59,0.00011535,2]
[347086668,1735492238617,-500.0,0.00011535,2]
[347086669,1735492238626,-1190.46801126,0.00011535,2]
[347086670,1735492238638,-1351.28198874,0.00011535,2]
[347086671,1735492238647,-500.0,0.00011535,2]
[347086672,1735492238656,-500.0,0.00011535,2]
[347086673,1735492238667,-500.0,0.00011535,2]
[347086674,1735492238677,-154.887694,0.00011535,2]
[347086675,1735492238686,-500.0,0.00011535,2]
[347086676,1735492238695,-1474.73,0.00011535,2]
[347086677,1735492238705,-500.0,0.00011535,2]
[347086678,1735492238714,-500.0,0.00011535,2]
[347086679,1735492238724,-500.0,0.00011535,2]
[347086680,1735492238733,-981.1,0.00011535,2]
[347086681,1735492238743,-948.08,0.00011535,2]
[347086682,1735492238752,-500.0,0.00011535,2]
[347086684,1735492238765,-500.0,0.00011535,2]
[347086686,1735492238775,-500.0,0.00011535,2]
[347086688,1735492238784,-500.0,0.00011535,2]
[347086690,1735492238793,-500.0,0.00011535,2]
[347086692,1735492238803,-500.0,0.00011535,2]
[347086694,1735492238812,-500.0,0.00011535,2]
[347086695,1735492238821,-178.62071583,0.00011535,2]
[347086697,1735492238833,-321.37928417,0.00011535,2]
[347086699,1735492238842,-500.0,0.00011536,2]
[347086701,1735492238851,-287.6810078,0.00011536,2]
[347086702,1735492238863,-212.3189922,0.00011536,2]
[347086703,1735492238872,-500.0,0.00011536,2]
[347086704,1735492238881,-288.8810078,0.00011536,2]
[347086705,1735492238899,-211.1189922,0.00011536,2]
[347086706,1735492238909,-500.0,0.00011536,2]
[347086707,1735492238918,-500.0,0.00011536,2]
[347086708,1735492238927,-500.0,0.00011536,2]
[347086709,1735492238937,-500.0,0.00011536,2]
[347086710,1735492238946,-500.0,0.00011536,2]
[347086711,1735492238955,-138.25101564,0.00011536,2]
[347086712,1735492238967,-361.74898436,0.00011536,2]
[347086713,1735492238976,-500.0,0.00011536,2]
[347086714,1735492238985,-500.0,0.00011536,2]
[347086715,1735492238994,-500.0,0.00011536,2]
[347086716,1735492239004,-500.0,0.00011536,2]
[347086717,1735492239013,-500.0,0.00011536,2]
[347086718,1735492239023,-500.0,0.00011536,2]
[347086719,1735492239032,-500.0,0.00011536,2]
[347086720,1735492239042,-500.0,0.00011536,2]
[347086721,1735492239051,-500.0,0.00011536,2]
[347086722,1735492239060,-500.0,0.00011536,2]
[347086723,1735492239070,-500.0,0.00011536,2]
[347086724,1735492239080,-500.0,0.00011536,2]
[347086725,1735492239089,-500.0,0.00011536,2]
[347086726,1735492239099,-500.0,0.00011536,2]
[347086727,1735492239108,-500.0,0.00011536,2]
[347086728,1735492239117,-500.0,0.00011536,2]
[347086729,1735492239126,-266.79893018,0.00011536,2]
[347086730,1735492239142,-233.20106982,0.00011536,2]
[347086731,1735492239152,-500.0,0.00011536,2]
[347086732,1735492239161,-500.0,0.00011536,2]
[347086733,1735492239170,-500.0,0.00011536,2]
[347086734,1735492239179,-280.39893018,0.00011536,2]
[347086735,1735492239196,-219.60106982,0.00011536,2]
[347086736,1735492239205,-500.0,0.00011536,2]
[347086737,1735492239215,-500.0,0.00011536,2]
[347086738,1735492239224,-500.0,0.00011536,2]
[347086739,1735492239233,-500.0,0.00011536,2]
[347086740,1735492239242,-500.0,0.00011536,2]
[347086741,1735492239252,-500.0,0.00011536,2]
[347086742,1735492239261,-500.0,0.00011536,2]
[347086743,1735492239270,-500.0,0.00011536,2]
[347086744,1735492239279,-500.0,0.00011536,2]
[347086745,1735492239289,-500.0,0.00011536,2]
[347086746,1735492239298,-500.0,0.00011536,2]
[347086747,1735492239307,-500.0,0.00011536,2]
[347086748,1735492239316,-500.0,0.00011536,2]
[347086749,1735492239511,-500.0,0.00011536,2]
[347086750,1735492239522,-500.0,0.00011536,2]
[347086751,1735492239532,-342.87463531,0.00011536,2]
[347086752,1735492239542,-500.0,0.00011536,2]
[347086753,1735492239551,-500.0,0.00011536,2]
[347086754,1735492239561,-500.0,0.00011536,2]
[347086755,1735492239571,-500.0,0.00011536,2]
[347086756,1735492239581,-500.0,0.00011536,2]
[347086757,1735492239596,-500.0,0.00011536,2]
[347086758,1735492239605,-500.0,0.00011536,2]
[347086759,1735492239614,-500.0,0.00011536,2]
[347086760,1735492239625,-500.0,0.00011536,2]
[347086761,1735492239634,-500.0,0.00011536,2]
[347086762,1735492239644,-512.72,0.00011536,2]
[347086763,1735492239653,-500.0,0.00011536,2]
[347086764,1735492239663,-500.0,0.00011536,2]
[347086765,1735492239673,-500.0,0.00011536,2]
[347086766,1735492239683,-500.0,0.00011536,2]
[347086767,1735492239692,-500.0,0.00011536,2]
[347086768,1735492239701,-500.0,0.00011536,2]
[347086769,1735492239711,-500.0,0.00011536,2]
[347086770,1735492239722,-500.0,0.00011536,2]
[347086771,1735492239732,-500.0,0.00011536,2]
[347086772,1735492239742,-500.0,0.00011536,2]
[347086773,1735492239751,-500.0,0.00011536,2]
[347086774,1735492239761,-500.0,0.00011536,2]
[347086775,1735492239771,-500.0,0.00011536,2]
[347086776,1735492239780,-274.74119678,0.00011536,2]
[347086777,1735492239790,-502.31,0.00011536,2]
[347086778,1735492239799,-500.0,0.00011536,2]
[347086779,1735492239808,-500.0,0.00011536,2]
[347086780,1735492239817,-500.0,0.00011536,2]
[347086781,1735492239827,-500.0,0.00011536,2]
[347086782,1735492239837,-500.0,0.00011536,2]
[347086783,1735492239846,-500.0,0.00011536,2]
[347086784,1735492239855,-500.0,0.00011536,2]
[347086785,1735492239864,-500.0,0.00011536,2]
[347086786,1735492239874,-500.0,0.00011536,2]
[347086787,1735492239883,-500.0,0.00011536,2]
[347086788,1735492239893,-500.0,0.00011536,2]
[347086789,1735492239902,-500.0,0.00011536,2]
[347086790,1735492239912,-500.0,0.00011536,2]
[347086791,1735492239922,-500.0,0.00011536,2]
[347086792,1735492239932,-500.0,0.00011536,2]
[347086793,1735492239941,-500.0,0.00011536,2]
[347086794,1735492239951,-500.0,0.00011536,2]
[347086795,1735492239960,-500.0,0.00011536,2]
[347086796,1735492239969,-500.0,0.00011536,2]
[347086797,1735492239979,-303.46098324,0.00011536,2]
[347086798,1735492239988,-500.0,0.00011536,2]
[347086799,1735492239998,-500.0,0.00011536,2]
[347086800,1735492240008,-500.0,0.00011536,2]
[347086801,1735492240017,-500.0,0.00011536,2]
[347086802,1735492240026,-500.0,0.00011536,2]
[347086803,1735492240036,-500.0,0.00011536,2]
[347086804,1735492240046,-500.0,0.00011536,2]
[347086805,1735492240055,-500.0,0.00011536,2]
[347086806,1735492240065,-500.0,0.00011536,2]
[347086807,1735492240075,-500.0,0.00011536,2]
[347086808,1735492240085,-500.0,0.00011536,2]
[347086809,1735492240094,-500.0,0.00011536,2]
[347086810,1735492240104,-500.0,0.00011536,2]
[347086811,1735492240114,-500.0,0.00011536,2]
[347086812,1735492240123,-500.0,0.00011536,2]
[347086813,1735492240133,-500.0,0.00011536,2]
[347086814,1735492240144,-500.0,0.00011536,2]
[347086815,1735492240154,-294.36873112,0.00011536,2]
[347086816,1735492240163,-500.0,0.00011536,2]
[347086817,1735492240172,-500.0,0.00011536,2]
[347086818,1735492240182,-500.0,0.00011536,2]
[347086819,1735492240191,-500.0,0.00011536,2]
[347086820,1735492240200,-500.0,0.00011536,2]
[347086821,1735492240209,-500.0,0.00011536,2]
[347086822,1735492240218,-500.0,0.00011536,2]
[347086823,1735492240228,-500.0,0.00011536,2]
[347086824,1735492240237,-500.0,0.00011536,2]
[347086825,1735492240247,-500.0,0.00011536,2]
[347086826,1735492240257,-500.0,0.00011536,2]
[347086827,1735492240268,-500.0,0.00011536,2]
[347086828,1735492240278,-500.0,0.00011536,2]
[347086829,1735492240287,-500.0,0.00011536,2]
[347086830,1735492240297,-500.0,0.00011536,2]
[347086831,1735492240306,-500.0,0.00011536,2]
[347086832,1735492240315,-500.0,0.00011536,2]
[347086833,1735492240324,-500.0,0.00011536,2]
[347086834,1735492240333,-500.0,0.00011536,2]
[347086835,1735492240342,-500.0,0.00011536,2]
[347086836,1735492240351,-500.0,0.00011536,2]
[347086837,1735492240361,-500.0,0.00011536,2]
[347086838,1735492240370,-500.0,0.00011536,2]
[347086839,1735492240380,-500.0,0.00011536,2]
[347086840,1735492240389,-500.0,0.00011536,2]
[347086841,1735492240398,-500.0,0.00011536,2]
[347086842,1735492240407,-500.0,0.00011536,2]
[347086843,1735492240417,-500.0,0.00011536,2]
[347086844,1735492240427,-500.0,0.00011536,2]
[347086845,1735492240436,-500.0,0.00011536,2]
[347086846,1735492240446,-500.0,0.00011536,2]
[347086847,1735492240456,-500.0,0.00011536,2]
[347086848,1735492240466,-500.0,0.00011536,2]
[347086849,1735492240475,-500.0,0.00011536,2]
[347086850,1735492240485,-500.0,0.00011536,2]
[347086851,1735492240494,-500.0,0.00011536,2]
[347086852,1735492240504,-500.0,0.00011536,2]
[347086853,1735492240514,-500.0,0.00011536,2]
[347086854,1735492240523,-500.0,0.00011536,2]
[347086855,1735492240533,-500.0,0.00011536,2]
[347086856,1735492240542,-500.0,0.00011536,2]
[347086857,1735492240551,-500.0,0.00011536,2]
[347086858,1735492240561,-500.0,0.00011536,2]
[347086859,1735492240570,-500.0,0.00011536,2]
[347086860,1735492240579,-500.0,0.00011536,2]
[347086861,1735492240593,-371.26691718,0.00011536,2]
[347086862,1735492240603,-500.0,0.00011536,2]
[347086863,1735492240612,-500.0,0.00011536,2]
[347086864,1735492240622,-500.0,0.00011536,2]
[347086865,1735492240631,-500.0,0.00011536,2]
[347086866,1735492240641,-500.0,0.00011536,2]
[347086867,1735492240650,-500.0,0.00011536,2]
[347086868,1735492240660,-500.0,0.00011536,2]
[347086869,1735492240671,-157.2612382,0.00011536,2]
[347086870,1735492240681,-500.0,0.00011536,2]
[347086872,1735492240691,-500.0,0.00011536,2]
[347086874,1735492240700,-500.0,0.00011536,2]
[347086876,1735492240710,-500.0,0.00011536,2]
[347086877,1735492240720,-500.0,0.00011536,2]
[347086879,1735492240730,-500.0,0.00011536,2]
[347086880,1735492240740,-500.0,0.00011536,2]
[347086881,1735492240750,-500.0,0.00011536,2]
[347086882,1735492240760,-500.0,0.00011536,2]
[347086883,1735492240770,-500.0,0.00011536,2]
[347086884,1735492240780,-500.0,0.00011536,2]
[347086885,1735492240790,-500.0,0.00011536,2]
[347086886,1735492240800,-500.0,0.00011536,2]
[347086887,1735492240810,-181.69140465,0.00011536,2]
[347086888,1735492240820,-500.0,0.00011536,2]
[347086889,1735492240829,-500.0,0.00011536,2]
[347086890,1735492240839,-500.0,0.00011536,2]
[347086891,1735492240848,-500.0,0.00011536,2]
[347086892,1735492240858,-500.0,0.00011536,2]
[347086893,1735492240867,-500.0,0.00011536,2]
[347086894,1735492240877,-500.0,0.00011536,2]
[347086895,1735492240886,-500.0,0.00011536,2]
[347086896,1735492240896,-500.0,0.00011536,2]
[347086897,1735492240905,-500.0,0.00011536,2]
[347086898,1735492240915,-500.0,0.00011536,2]
[347086899,1735492240924,-500.0,0.00011536,2]
[347086900,1735492240934,-500.0,0.00011536,2]
[347086901,1735492240944,-500.0,0.00011536,2]
[347086902,1735492240953,-500.0,0.00011536,2]
[347086903,1735492240963,-500.0,0.00011536,2]
[347086904,1735492240972,-500.0,0.00011536,2]
[347086905,1735492240982,-500.0,0.00011536,2]
[347086906,1735492240991,-500.0,0.00011536,2]
[347086907,1735492241000,-500.0,0.00011536,2]
[347086908,1735492241010,-500.0,0.00011536,2]
[347086909,1735492241020,-500.0,0.00011536,2]
[347086910,1735492241030,-500.0,0.00011536,2]
[347086911,1735492241039,-500.0,0.00011536,2]
[347086912,1735492241048,-500.0,0.00011536,2]
[347086913,1735492241057,-500.0,0.00011536,2]
[347086914,1735492241067,-377.38862422,0.00011536,2]
[347086915,1735492241076,-500.0,0.00011536,2]
[347086916,1735492241085,-500.0,0.00011536,2]
[347086917,1735492241094,-220.75672703,0.00011536,2]
[347086918,1735492241104,-500.0,0.00011536,2]
[347086919,1735492241113,-500.0,0.00011536,2]
[347086920,1735492241123,-500.0,0.00011536,2]
[347086921,1735492241132,-500.0,0.00011536,2]
[347086922,1735492241141,-500.0,0.00011536,2]
[347086923,1735492241151,-500.0,0.00011536,2]
[347086924,1735492241160,-500.0,0.00011536,2]
[347086925,1735492241170,-500.0,0.00011536,2]
[347086926,1735492241181,-500.0,0.00011536,2]
[347086927,1735492241190,-500.0,0.00011536,2]
[347086928,1735492241200,-500.0,0.00011536,2]
[347086929,1735492241209,-500.0,0.00011536,2]
[347086930,1735492241218,-500.0,0.00011536,2]
[347086931,1735492241227,-500.0,0.00011536,2]
[347086932,1735492241237,-500.0,0.00011536,2]
[347086933,1735492241246,-500.0,0.00011536,2]
[347086934,1735492241255,-526.35,0.00011536,2]
[347086935,1735492241265,-500.0,0.00011536,2]
[347086936,1735492241274,-500.0,0.00011536,2]
[347086937,1735492241283,-500.0,0.00011536,2]
[347086938,1735492241293,-500.0,0.00011536,2]
[347086939,1735492241303,-500.0,0.00011536,2]
[347086940,1735492241314,-500.0,0.00011536,2]
[347086941,1735492241323,-500.0,0.00011536,2]
[347086942,1735492241332,-500.0,0.00011536,2]
[347086943,1735492241342,-500.0,0.00011536,2]
[347086944,1735492241351,-500.0,0.00011536,2]
[347086945,1735492241360,-500.0,0.00011536,2]
[347086946,1735492241369,-500.0,0.00011536,2]
[347086947,1735492241379,-500.0,0.00011536,2]
[347086948,1735492241388,-500.0,0.00011536,2]
[347086949,1735492241397,-500.0,0.00011536,2]
[347086950,1735492241406,-500.0,0.00011536,2]
[347086951,1735492241415,-500.0,0.00011536,2]